bitfinex/quotes_BTCUSD_20250102
["timestamp","ask_amount","ask_price","bid_price","bid_amount"]
[1735837206964,0.205536,97307.0,97304.0,0.00023296]
[1735837208715,0.205536,97307.0,97293.0,0.19859596]
[1735837209038,0.205521,97314.0,97293.0,0.00049102]
[1735837209238,0.15,97317.0,97304.0,0.001]
[1735837209440,0.411069,97308.0,97304.0,0.001]
[1735837209650,0.10398632,97307.0,97293.0,0.00049102]
[1735837209795,0.20556,97295.0,97293.0,0.00049102]
[1735837210002,0.10398632,97294.0,97293.0,0.00149102]
[1735837210221,0.25398632,97294.0,97293.0,0.00149102]
[1735837210629,0.25398632,97294.0,97293.0,0.00049102]
[1735837211868,0.25398632,97294.0,97293.0,0.00149102]
[1735837212073,0.33338632,97294.0,97293.0,0.00149102]
[1735837212514,0.33538632,97294.0,97293.0,0.00049102]
[1735837213284,0.33638632,97294.0,97293.0,0.00049102]
[1735837213685,0.15,97291.0,97279.0,8.56e-05]
[1735837213880,0.10398632,97290.0,97279.0,8.56e-05]
[1735837214084,0.30955632,97290.0,97279.0,8.56e-05]
[1735837215123,0.53875632,97290.0,97279.0,8.56e-05]
[1735837217013,0.46155632,97290.0,97279.0,8.56e-05]
[1735837217411,0.25598632,97290.0,97279.0,8.56e-05]
[1735837217844,0.46028632,97290.0,97279.0,8.56e-05]
[1735837218053,0.58172548,97290.0,97279.0,8.56e-05]
[1735837218257,0.51997887,97290.0,97279.0,8.56e-05]
[1735837218659,0.52097887,97290.0,97279.0,8.56e-05]
[1735837218938,0.50488632,97290.0,97279.0,8.56e-05]
[1735837219122,0.50988632,97290.0,97279.0,8.56e-05]
[1735837219330,0.50388632,97290.0,97279.0,8.56e-05]
[1735837219490,0.50588632,97290.0,97279.0,8.56e-05]
[1735837219916,0.51288632,97290.0,97279.0,8.56e-05]
[1735837220118,0.81787923,97290.0,97279.0,8.56e-05]
[1735837220322,0.81287923,97290.0,97279.0,8.56e-05]
[1735837220490,0.82187923,97290.0,97279.0,8.56e-05]
[1735837221496,0.51688632,97290.0,97279.0,8.56e-05]
[1735837222757,0.39388632,97290.0,97279.0,8.56e-05]
[1735837222996,0.34828632,97290.0,97279.0,8.56e-05]
[1735837223218,0.26698632,97290.0,97279.0,8.56e-05]
[1735837224732,0.26298632,97290.0,97279.0,8.56e-05]
[1735837224907,0.25498632,97290.0,97279.0,8.56e-05]
[1735837225109,0.27107896,97290.0,97279.0,8.56e-05]
[1735837225349,0.27607896,97290.0,97279.0,8.56e-05]
[1735837225531,0.27007896,97290.0,97279.0,8.56e-05]
[1735837225668,0.35097896,97290.0,97279.0,8.56e-05]
[1735837225880,0.56719139,97290.0,97279.0,8.56e-05]
[1735837226587,0.55109875,97290.0,97279.0,8.56e-05]
[1735837226782,0.70049875,97290.0,97279.0,8.56e-05]
[1735837227585,0.69949875,97290.0,97279.0,8.56e-05]
[1735837227793,0.533892,97280.0,97279.0,8.56e-05]
[1735837228000,0.66087832,97280.0,97279.0,8.56e-05]
[1735837228198,0.1,97254.0,97252.0,8.55e-05]
[1735837228403,0.38793332,97254.0,97252.0,8.55e-05]
[1735837229077,0.53793332,97254.0,97252.0,8.55e-05]
[1735837229445,0.54042413,97254.0,97252.0,8.55e-05]
[1735837231217,0.66342413,97254.0,97252.0,8.55e-05]
[1735837231801,0.56342413,97254.0,97252.0,8.55e-05]
[1735837231997,0.47213454,97254.0,97252.0,8.55e-05]
[1735837232202,0.47013454,97254.0,97252.0,8.55e-05]
[1735837232404,0.48823335,97254.0,97252.0,8.55e-05]
[1735837232652,0.49523335,97254.0,97252.0,8.55e-05]
[1735837233623,0.51823335,97254.0,97252.0,8.55e-05]
[1735837233831,0.61823335,97254.0,97252.0,8.55e-05]
[1735837234867,0.74403335,97254.0,97252.0,8.55e-05]
[1735837236678,0.72793454,97254.0,97252.0,8.55e-05]
[1735837237502,0.72793454,97254.0,97249.0,0.000102]
[1735837237503,0.273,97250.0,97249.0,9e-07]
[1735837237644,0.355702,97228.0,97215.0,0.0816]
[1735837237843,0.45968832,97228.0,97215.0,0.0816]
[1735837238673,0.45968832,97228.0,97212.0,0.0458]
[1735837239266,0.58268832,97228.0,97212.0,0.0458]
[1735837239481,0.46268832,97228.0,97212.0,0.0458]
[1735837240215,0.46368832,97228.0,97212.0,0.0458]
[1735837241086,0.31368832,97228.0,97227.0,0.0780854]
[1735837241225,0.004,97228.0,97227.0,0.1261854]
[1735837242100,0.001,97228.0,97227.0,0.1261854]
[1735837242310,0.001,97228.0,97227.0,0.1363638]
[1735837242504,0.004,97228.0,97227.0,0.1261854]
[1735837242805,0.15,97245.0,97227.0,0.1261854]
[1735837243008,0.15,97245.0,97231.0,0.205694]
[1735837243657,0.15,97245.0,97235.0,0.205686]
[1735837244038,0.15,97248.0,97235.0,0.205686]
[1735837244238,0.205657,97249.0,97235.0,0.205686]
[1735837244239,0.10398632,97247.0,97236.0,0.0819]
[1735837244448,0.16001832,97255.0,97237.0,0.045]
[1735837244654,0.001,97245.0,97237.0,0.045]
[1735837244853,0.001,97245.0,97244.0,0.205668]
[1735837245106,0.205649,97253.0,97239.0,0.205678]
[1735837245312,0.002,97248.0,97243.0,0.20567]
[1735837245511,0.205643,97256.0,97243.0,0.20567]
[1735837245910,0.001,97245.0,97243.0,0.20567]
[1735837246247,0.001,97245.0,97238.0,0.0819]
[1735837246858,0.205668,97244.0,97238.0,0.0819]
[1735837247265,0.205661,97248.0,97238.0,0.0819]
[1735837247470,0.205663,97246.0,97243.0,0.005]
[1735837247735,0.30964932,97246.0,97238.0,0.0819]
[1735837247936,0.411346,97242.0,97238.0,0.0819]
[1735837248169,0.205676,97240.0,97238.0,0.0879]
[1735837248375,0.10398632,97239.0,97238.0,0.0859]
[1735837250272,0.10398632,97239.0,97238.0,0.0869]
[1735837250479,0.10398632,97239.0,97238.0,0.0909]
[1735837250650,0.10398632,97239.0,97238.0,0.0859]
[1735837250859,0.10498632,97239.0,97238.0,0.0909]
[1735837251061,0.10498632,97239.0,97238.0,0.0869]
[1735837251267,0.10498632,97239.0,97238.0,0.01]
[1735837252062,0.37798632,97239.0,97238.0,0.01]
[1735837252280,0.38844306,97239.0,97238.0,0.01]
[1735837252455,0.42045773,97239.0,97238.0,0.01]
[1735837252905,0.42045773,97239.0,97238.0,0.005]
[1735837253118,0.1,97237.0,97236.0,8.55e-05]
[1735837253347,0.37698632,97237.0,97236.0,8.55e-05]
[1735837253554,0.40900099,97237.0,97236.0,8.55e-05]
[1735837253963,0.39308786,97237.0,97236.0,8.55e-05]
[1735837254365,0.40108786,97237.0,97236.0,8.55e-05]
[1735837254565,0.40308786,97237.0,97236.0,8.55e-05]
[1735837255416,0.28008786,97237.0,97236.0,8.55e-05]
[1735837256198,0.40308786,97237.0,97236.0,8.55e-05]
[1735837256399,0.43509411,97237.0,97236.0,8.55e-05]
[1735837256609,0.40308786,97237.0,97236.0,8.55e-05]
[1735837256812,0.41899259,97237.0,97236.0,8.55e-05]
[1735837257008,0.38698632,97237.0,97236.0,8.55e-05]
[1735837257667,0.26398632,97237.0,97236.0,8.55e-05]
[1735837258607,0.26198632,97237.0,97236.0,8.55e-05]
[1735837259176,0.26398632,97237.0,97236.0,8.55e-05]
[1735837259591,0.26198632,97237.0,97236.0,8.55e-05]
[1735837259796,0.25598632,97237.0,97236.0,8.55e-05]
[1735837260007,0.37898632,97237.0,97236.0,8.55e-05]
[1735837260211,0.38598632,97237.0,97236.0,8.55e-05]
[1735837260426,0.5180302,97237.0,97236.0,8.55e-05]
[1735837260628,0.5180302,97237.0,97236.0,5e-07]
[1735837261419,0.5110302,97237.0,97236.0,5e-07]
[1735837261625,0.50320116,97237.0,97236.0,5e-07]
[1735837261829,0.61020116,97237.0,97236.0,5e-07]
[1735837262060,0.51020116,97237.0,97236.0,5e-07]
[1735837262267,0.61320116,97237.0,97236.0,5e-07]
[1735837262474,0.68926196,97237.0,97236.0,5e-07]
[1735837262682,0.61020116,97237.0,97236.0,5e-07]
[1735837263095,0.5230302,97237.0,97236.0,5e-07]
[1735837263429,0.53413305,97237.0,97236.0,5e-07]
[1735837263627,0.52513305,97237.0,97236.0,5e-07]
[1735837263854,0.53013305,97237.0,97236.0,5e-07]
[1735837264446,0.43913305,97237.0,97236.0,5e-07]
[1735837264660,0.43030425,97237.0,97236.0,5e-07]
[1735837264861,0.52247521,97237.0,97236.0,5e-07]
[1735837265262,0.53147521,97237.0,97236.0,5e-07]
[1735837266137,0.40847521,97237.0,97236.0,5e-07]
[1735837266302,0.28426037,97237.0,97236.0,5e-07]
[1735837266503,0.13426037,97237.0,97236.0,5e-07]
[1735837266701,0.0091712,97237.0,97236.0,0.1232005]
[1735837266903,0.0091712,97237.0,97236.0,1.6232005]
[1735837267144,0.13825644,97241.0,97238.0,0.0772]
[1735837267346,0.13825644,97241.0,97240.0,0.205676]
[1735837267549,0.00066181,97254.0,97240.0,0.10398632]
[1735837267758,0.00066181,97254.0,97253.0,0.205649]
[1735837267952,0.00066181,97254.0,97251.0,0.205652]
[1735837268656,0.00066181,97254.0,97253.0,0.205649]
[1735837270187,0.00066181,97254.0,97253.0,0.333049]
[1735837270967,0.00166181,97254.0,97253.0,0.333049]
[1735837271168,0.00066181,97254.0,97253.0,0.43703532]
[1735837271449,0.00166181,97254.0,97253.0,0.44403532]
[1735837271657,0.00066181,97254.0,97253.0,0.47176362]
[1735837272083,0.00166181,97254.0,97253.0,0.47076362]
[1735837272297,0.00266181,97254.0,97253.0,0.3747773]
[1735837272905,0.00266181,97254.0,97253.0,0.47876362]
[1735837274169,0.00266181,97254.0,97253.0,0.35448625]
[1735837275803,0.00266181,97254.0,97253.0,0.1384]
[1735837276432,0.00266181,97254.0,97253.0,0.24238632]
[1735837276849,0.00166181,97254.0,97253.0,0.23938632]
[1735837277061,0.00166181,97254.0,97253.0,0.23138632]
[1735837277271,0.00166181,97254.0,97253.0,0.23338632]
[1735837277474,0.00166181,97254.0,97253.0,0.33838632]
[1735837277679,0.00166181,97254.0,97253.0,0.23838632]
[1735837277833,0.00166181,97254.0,97253.0,1.83138632]
[1735837278040,0.00066181,97254.0,97253.0,1.83138632]
[1735837278245,0.00266181,97254.0,97253.0,1.84138632]
[1735837281321,0.00266181,97254.0,97253.0,1.74138632]
[1735837281528,0.00266181,97254.0,97253.0,1.84138632]
[1735837282920,0.00266181,97254.0,97253.0,0.34138632]
[1735837283790,0.00266181,97254.0,97253.0,0.24138632]
[1735837283999,0.00266181,97254.0,97253.0,1.74138632]
[1735837284382,0.00266181,97254.0,97253.0,1.84138632]
[1735837285702,0.00166181,97254.0,97253.0,1.83938632]
[1735837286155,0.00066181,97254.0,97253.0,1.83138632]
[1735837286305,0.00066181,97254.0,97253.0,1.83238632]
[1735837286511,0.00766181,97254.0,97253.0,1.83238632]
[1735837286698,0.00766181,97254.0,97253.0,1.73238632]
[1735837286894,0.00966181,97254.0,97253.0,1.83238632]
[1735837287095,0.01666181,97254.0,97253.0,2.10638632]
[1735837287314,0.01666181,97254.0,97253.0,2.10538632]
[1735837287521,0.02566181,97254.0,97253.0,2.10638632]
[1735837287768,0.00509681,97254.0,97253.0,2.10638632]
[1735837287971,0.083,97316.0,97269.0,0.433015]
[1735837288123,0.205532,97309.0,97269.0,0.78700132]
[1735837288325,0.205539,97306.0,97269.0,0.78700132]
[1735837288527,0.205532,97309.0,97269.0,0.78700132]
[1735837288771,0.20553,97310.0,97269.0,0.78700132]
[1735837289397,0.15,97315.0,97292.0,0.205566]
[1735837290015,0.15,97311.0,97283.0,0.205585]
[1735837290242,0.205532,97309.0,97282.0,1.5]
[1735837290457,0.0208147,97303.0,97290.0,0.20557]
[1735837290966,0.0208147,97303.0,97292.0,0.009]
[1735837291218,0.15,97311.0,97292.0,0.006]
[1735837291718,0.15,97312.0,97292.0,0.006]
[1735837291948,0.205503,97322.0,97292.0,0.006]
[1735837292224,0.205512,97318.0,97292.0,0.006]
[1735837292446,0.205498,97325.0,97292.0,0.10998632]
[1735837292691,0.15,97324.0,97292.0,0.10998632]
[1735837293181,0.15,97324.0,97292.0,0.10398632]
[1735837293387,0.15,97324.0,97292.0,0.11298632]
[1735837293593,0.15,97325.0,97292.0,0.15098632]
[1735837293807,0.15,97325.0,97292.0,0.33718632]
[1735837294013,0.15,97325.0,97292.0,0.32818632]
[1735837294213,0.15,97325.0,97292.0,0.3465491]
[1735837294418,0.15,97325.0,97292.0,0.3555491]
[1735837294627,0.16608738,97326.0,97292.0,1.8465491]
[1735837295032,0.16608738,97326.0,97292.0,1.8385491]
[1735837295421,0.16608738,97326.0,97292.0,1.8395491]
[1735837296020,0.01608738,97326.0,97292.0,1.8395491]
[1735837296352,0.205496,97326.0,97293.0,0.10398632]
[1735837296735,0.15,97329.0,97299.0,0.205551]
[1735837296934,0.205496,97326.0,97299.0,0.30953732]
[1735837297294,0.205505,97322.0,97299.0,0.30953732]
[1735837297511,0.205496,97326.0,97299.0,0.30953732]
[1735837297737,0.287888,97330.0,97299.0,0.30953732]
[1735837297944,0.000171,97331.0,97299.0,0.53953732]
[1735837298151,0.000171,97331.0,97299.0,0.78073732]
[1735837298598,0.000171,97331.0,97299.0,2.28073732]
[1735837299015,0.000171,97331.0,97299.0,2.25773732]
[1735837299412,0.000171,97331.0,97299.0,2.25073732]
[1735837299967,0.000171,97331.0,97299.0,2.24273732]
[1735837300349,0.000171,97331.0,97299.0,2.24173732]
[1735837300652,0.000171,97331.0,97299.0,2.24373732]
[1735837300888,0.000171,97331.0,97299.0,2.24273732]
[1735837301080,0.000171,97331.0,97299.0,2.26573732]
[1735837301278,0.000171,97331.0,97299.0,2.31583732]
[1735837301493,0.0001255,97300.0,97299.0,2.31583732]
[1735837301707,0.0001255,97300.0,97299.0,3.05436932]
[1735837301918,0.0001255,97300.0,97299.0,2.99776932]
[1735837302599,0.0001255,97300.0,97299.0,2.92290232]
[1735837302797,0.00015935,97335.0,97327.0,0.205491]
[1735837303190,0.00015935,97335.0,97322.0,0.205503]
[1735837303481,0.00015935,97335.0,97321.0,0.205504]
[1735837303685,0.18648632,97334.0,97311.0,0.1]
[1735837303894,0.18648632,97334.0,97305.0,0.205539]
[1735837304111,0.205492,97328.0,97309.0,0.20553]
[1735837304313,0.205482,97332.0,97322.0,0.001]
[1735837304519,0.0825,97334.0,97322.0,0.002]
[1735837304769,0.0825,97334.0,97322.0,0.001]
[1735837304942,0.00015935,97335.0,97322.0,0.001]
[1735837305159,0.00030667,97335.0,97322.0,0.001]
[1735837305515,0.00030667,97335.0,97317.0,0.205513]
[1735837305715,0.205478,97334.0,97315.0,0.205517]
[1735837305919,0.00030667,97335.0,97316.0,0.205516]
[1735837306353,0.00030667,97335.0,97320.0,0.205507]
[1735837306543,0.00030667,97335.0,97317.0,0.005]
[1735837306754,0.00030667,97335.0,97320.0,0.19854425]
[1735837307280,0.00030667,97335.0,97327.0,0.205492]
[1735837307610,0.00030667,97335.0,97325.0,0.205495]
[1735837308457,0.00030667,97335.0,97329.0,0.205486]
[1735837308630,0.00030667,97335.0,97320.0,0.20154425]
[1735837308852,0.00030667,97335.0,97320.0,0.0767]
[1735837309202,0.00030667,97335.0,97321.0,0.205505]
[1735837309404,0.00030667,97335.0,97327.0,0.005]
[1735837309846,0.00030667,97335.0,97320.0,0.0797]
[1735837309847,0.00030667,97335.0,97320.0,0.003]
[1735837310048,0.00030667,97335.0,97320.0,0.007]
[1735837310049,0.205485,97331.0,97320.0,0.007]
[1735837310288,0.205492,97328.0,97320.0,0.003]
[1735837310491,0.205498,97325.0,97320.0,0.003]
[1735837310692,0.0483,97328.0,97303.0,0.1]
[1735837310933,0.2325,97325.0,97284.0,0.205582]
[1735837311133,0.205531,97309.0,97283.0,0.1]
[1735837311364,0.205505,97321.0,97288.0,0.205573]
[1735837311575,0.205534,97308.0,97289.0,0.205571]
[1735837311955,0.205534,97308.0,97293.0,0.205563]
[1735837313086,0.205505,97321.0,97295.0,0.1]
[1735837313297,0.205505,97321.0,97303.0,0.205543]
[1735837313500,0.0825,97322.0,97296.0,0.17978632]
[1735837313729,0.205505,97321.0,97306.0,0.205536]
[1735837313909,0.205505,97321.0,97304.0,1.5]
[1735837314125,0.41101,97321.0,97304.0,1.5]
[1735837314283,0.205505,97321.0,97305.0,0.205539]
[1735837314913,0.205505,97321.0,97304.0,1.5]
[1735837315074,0.205521,97314.0,97304.0,1.5]
[1735837315487,0.411042,97314.0,97304.0,1.5]
[1735837315894,0.411042,97314.0,97305.0,0.001]
[1735837316506,0.205521,97314.0,97301.0,0.205546]
[1735837316895,0.205513,97318.0,97305.0,0.205539]
[1735837317077,0.205513,97318.0,97304.0,0.002]
[1735837317252,0.205513,97318.0,97305.0,0.002]
[1735837317468,0.288004,97322.0,97306.0,0.205537]
[1735837317707,0.205512,97318.0,97305.0,0.002]
[1735837317913,0.205512,97318.0,97305.0,0.207538]
[1735837318110,0.205512,97318.0,97305.0,0.002]
[1735837318291,0.20552,97314.0,97305.0,0.002]
[1735837318681,0.205528,97310.0,97305.0,0.002]
[1735837318885,0.288004,97322.0,97305.0,0.002]
[1735837319090,0.25398632,97321.0,97302.0,1.5]
[1735837319290,0.205543,97304.0,97302.0,1.5]
[1735837319917,0.25398632,97321.0,97302.0,1.5]
[1735837320136,0.205531,97309.0,97302.0,1.5]
[1735837320330,0.0825,97322.0,97302.0,0.1]
[1735837320524,0.205507,97320.0,97302.0,0.205544]
[1735837320730,0.0825,97322.0,97302.0,0.205544]
[1735837320731,0.205509,97319.0,97303.0,1.5]
[1735837320927,0.205509,97319.0,97304.0,0.205541]
[1735837321159,0.0825,97322.0,97302.0,0.01]
[1735837321346,0.205525,97312.0,97302.0,0.01]
[1735837322081,0.0825,97322.0,97302.0,0.003]
[1735837322286,0.205534,97308.0,97293.0,0.205735]
[1735837322444,0.205534,97308.0,97302.0,0.004]
[1735837322648,0.10398632,97321.0,97294.0,0.205562]
[1735837322649,0.205527,97311.0,97294.0,0.205562]
[1735837323041,0.205514,97317.0,97302.0,0.004]
[1735837323385,0.205514,97317.0,97299.0,0.205551]
[1735837323612,0.0825,97322.0,97309.0,0.205529]
[1735837323735,0.0819,97332.0,97309.0,0.1]
[1735837324132,0.0819,97332.0,97313.0,0.20552]
[1735837324331,0.205486,97330.0,97313.0,0.20552]
[1735837324530,0.0819,97332.0,97313.0,0.20552]
[1735837325161,0.0819,97332.0,97310.0,0.205528]
[1735837325374,0.205484,97331.0,97303.0,0.0452]
[1735837325728,0.410968,97331.0,97316.0,0.205515]
[1735837326130,0.205484,97331.0,97316.0,0.205515]
[1735837326338,0.205479,97334.0,97312.0,0.205524]
[1735837326339,0.205479,97334.0,97317.0,0.411026]
[1735837326582,0.20548,97333.0,97317.0,0.205513]
[1735837326914,0.205478,97334.0,97317.0,0.205513]
[1735837327638,0.205486,97331.0,97316.0,0.210515]
[1735837327823,0.205478,97334.0,97316.0,0.210515]
[1735837328163,0.205478,97334.0,97319.0,0.205508]
[1735837328514,0.205478,97334.0,97317.0,0.205513]
[1735837328719,0.15,97338.0,97317.0,0.002]
[1735837328930,0.205492,97328.0,97317.0,0.002]
[1735837329176,0.205486,97330.0,97317.0,0.002]
[1735837329517,0.205486,97330.0,97319.0,0.001]
[1735837329926,0.205486,97330.0,97315.0,0.205517]
[1735837330126,0.205486,97330.0,97317.0,0.004]
[1735837330417,0.10398632,97329.0,97317.0,0.003]
[1735837330700,0.205509,97319.0,97317.0,0.003]
[1735837330957,0.25398632,97318.0,97317.0,0.003]
[1735837331618,0.33358632,97318.0,97317.0,0.003]
[1735837331823,0.205543,97303.0,97296.0,0.09115375]
[1735837332213,0.205543,97303.0,97293.0,0.00031745]
[1735837332418,0.205533,97308.0,97293.0,0.00031745]
[1735837332643,0.205543,97303.0,97293.0,0.00031745]
[1735837333025,0.205533,97308.0,97302.0,0.007171]
[1735837333225,0.205511,97318.0,97302.0,0.205715]
[1735837333470,0.205511,97318.0,97303.0,0.205543]
[1735837333680,0.205521,97314.0,97302.0,0.007171]
[1735837333884,0.205521,97314.0,97304.0,1.5]
[1735837335103,0.01040592,97326.0,97304.0,1.5]
[1735837335309,0.205521,97314.0,97304.0,1.5]
[1735837335522,0.205528,97311.0,97304.0,1.5]
[1735837335727,0.205534,97308.0,97304.0,1.5]
[1735837336156,0.205534,97308.0,97304.0,1.502]
[1735837336331,0.205534,97308.0,97304.0,0.004]
[1735837336592,0.205534,97308.0,97304.0,0.002]
[1735837336811,0.411068,97308.0,97304.0,0.005]
[1735837337017,0.15,97305.0,97304.0,0.005]
[1735837337222,0.25398632,97305.0,97304.0,0.003]
[1735837337632,0.27698632,97305.0,97304.0,0.003]
[1735837338016,0.228541,97304.0,97302.0,0.000171]
[1735837338244,0.25398632,97303.0,97302.0,0.000171]
[1735837338574,0.27698632,97303.0,97302.0,0.000171]
[1735837338806,0.38932297,97303.0,97302.0,0.000171]
[1735837340108,0.6835542,97303.0,97302.0,0.000171]
[1735837340319,0.355562,97294.0,97293.0,0.00031745]
[1735837340543,0.504262,97294.0,97293.0,0.00031745]
[1735837340680,0.60824832,97294.0,97293.0,0.00031745]
[1735837340882,0.80824832,97294.0,97293.0,4.5e-07]
[1735837341127,0.84025723,97294.0,97293.0,4.5e-07]
[1735837341333,0.205611,97271.0,97238.0,0.09115375]
[1735837341483,0.173,97270.0,97238.0,0.09115375]
[1735837341690,0.70599732,97271.0,97236.0,5e-07]
[1735837341691,0.355647,97254.0,97236.0,5e-07]
[1735837341931,0.45963332,97254.0,97236.0,5e-07]
[1735837342924,0.35579413,97254.0,97236.0,5e-07]
[1735837343137,0.20579413,97254.0,97253.0,0.0060855]
[1735837345149,0.45978045,97254.0,97253.0,0.0060855]
[1735837347080,0.56538045,97254.0,97253.0,5e-07]
[1735837347935,0.76538045,97254.0,97253.0,5e-07]
[1735837348147,0.355683,97237.0,97236.0,5e-07]
[1735837348357,0.56446932,97237.0,97236.0,5e-07]
[1735837349179,0.54146932,97237.0,97236.0,5e-07]
[1735837349389,0.6937269,97237.0,97236.0,5e-07]
[1735837349830,0.1,97235.0,97227.0,9e-07]
[1735837350004,0.355702,97228.0,97227.0,9e-07]
[1735837350221,0.53128832,97228.0,97227.0,9e-07]
[1735837350643,0.45968832,97228.0,97227.0,9e-07]
[1735837351050,0.48021755,97228.0,97227.0,9e-07]
[1735837351901,0.45968832,97228.0,97227.0,9e-07]
[1735837352108,0.209702,97228.0,97227.0,0.0030009]
[1735837352318,0.31368832,97228.0,97227.0,0.0030009]
[1735837352526,0.50279149,97228.0,97227.0,9e-07]
[1735837352756,0.48779149,97228.0,97227.0,0.0010009]
[1735837353181,0.59379149,97228.0,97227.0,9e-07]
[1735837353358,0.60079149,97228.0,97227.0,9e-07]
[1735837353533,0.173,97227.0,97206.0,8.55e-05]
[1735837353899,0.205744,97208.0,97206.0,8.55e-05]
[1735837355183,0.20589102,97208.0,97206.0,8.55e-05]
[1735837355379,0.20589102,97208.0,97207.0,0.002171]
[1735837355569,0.20589102,97208.0,97207.0,0.005171]
[1735837355770,0.20589102,97208.0,97207.0,1.505171]
[1735837357012,0.20589102,97208.0,97207.0,0.005171]
[1735837360471,0.45987734,97208.0,97207.0,0.005171]
[1735837361097,0.45987734,97208.0,97166.0,0.01610527]
[1735837361098,0.15,97205.0,97204.0,5e-07]
[1735837361305,0.25398632,97205.0,97204.0,5e-07]
[1735837362625,0.25598632,97205.0,97204.0,5e-07]
[1735837363295,0.2661279,97205.0,97204.0,5e-07]
[1735837364063,0.28223405,97205.0,97204.0,5e-07]
[1735837365044,0.02824773,97205.0,97204.0,5e-07]
[1735837366248,0.13223405,97205.0,97204.0,5e-07]
[1735837367841,0.1161279,97205.0,97204.0,5e-07]
[1735837368042,0.01214158,97205.0,97204.0,5e-07]
[1735837368238,0.002,97205.0,97204.0,5e-07]
[1735837369017,0.002,97205.0,97204.0,0.0807005]
[1735837369221,0.002,97205.0,97204.0,0.28468682]
[1735837369419,0.002,97205.0,97204.0,1.88468682]
[1735837370523,0.002,97205.0,97204.0,1.93168682]
[1735837370725,0.002,97205.0,97204.0,1.95468682]
[1735837370931,0.205689,97235.0,97218.0,0.2]
[1735837371136,0.1264,97269.0,97220.0,0.0764]
[1735837371343,0.205667,97245.0,97227.0,0.1]
[1735837371564,0.205675,97241.0,97227.0,0.20398632]
[1735837371780,0.205675,97241.0,97227.0,1.70398632]
[1735837371999,0.205667,97245.0,97227.0,1.70398632]
[1735837372206,0.205663,97247.0,97227.0,1.78348632]
[1735837372386,0.0011712,97228.0,97227.0,1.78348632]
[1735837373433,0.0011712,97228.0,97227.0,1.69361522]
[1735837374036,0.0011712,97228.0,97227.0,0.0956289]
[1735837374252,0.0021712,97228.0,97227.0,0.1046289]
[1735837374428,0.0021712,97228.0,97227.0,0.0986289]
[1735837374601,0.0001712,97228.0,97227.0,0.0896289]
[1735837374804,0.0011712,97228.0,97227.0,0.1046289]
[1735837375015,0.0011712,97228.0,97227.0,0.0956289]
[1735837375209,0.0011712,97228.0,97227.0,0.0795]
[1735837375413,0.0021712,97228.0,97227.0,0.0885]
[1735837375611,0.0021712,97228.0,97227.0,0.0945]
[1735837377039,0.0021712,97228.0,97227.0,0.015]
[1735837378766,0.0021712,97228.0,97227.0,0.11898632]
[1735837379174,0.0021712,97228.0,97227.0,1.61898632]
[1735837380271,0.0021712,97228.0,97227.0,0.11898632]
[1735837381864,0.0021712,97228.0,97227.0,1.61898632]
[1735837382124,0.0021712,97228.0,97227.0,1.515]
[1735837382352,0.0021712,97228.0,97227.0,0.015]
[1735837382559,0.2078732,97228.0,97227.0,0.015]
[1735837382818,0.0021712,97228.0,97227.0,0.015]
[1735837384564,0.0021712,97228.0,97227.0,0.32469032]
[1735837385137,0.0021712,97228.0,97227.0,0.11898632]
[1735837385939,0.0021712,97228.0,97227.0,0.42469032]
[1735837386140,0.0021712,97228.0,97227.0,0.50379032]
[1735837386542,0.0021712,97228.0,97227.0,0.77679032]
[1735837386748,0.0021712,97228.0,97227.0,2.32579032]
[1735837387664,0.0001712,97228.0,97227.0,2.31079032]
[1735837387866,0.0061712,97228.0,97227.0,2.31179032]
[1735837388088,0.0141712,97228.0,97227.0,2.21279032]
[1735837388700,0.0141712,97228.0,97227.0,2.21008515]
[1735837388909,0.01171274,97228.0,97227.0,2.06008515]
[1735837389113,0.01171274,97228.0,97227.0,2.16008515]
[1735837389720,0.01171274,97228.0,97227.0,1.93979032]
[1735837390136,0.01171274,97228.0,97227.0,2.13979032]
[1735837391218,0.01171274,97228.0,97227.0,1.73408632]
[1735837391418,0.01171274,97228.0,97227.0,1.60598632]
[1735837391874,0.01171274,97228.0,97227.0,1.502]
[1735837393354,0.01171274,97228.0,97227.0,1.60598632]
[1735837394786,0.01171274,97228.0,97227.0,0.10598632]
[1735837395534,0.21741474,97228.0,97227.0,1.502]
[1735837395901,0.21741474,97228.0,97227.0,0.002]
[1735837396711,0.20941474,97228.0,97227.0,0.001]
[1735837396931,0.205695,97232.0,97223.0,1.5]
[1735837397103,0.001,97228.0,97227.0,0.002]
[1735837397346,0.001,97228.0,97227.0,0.10498632]
[1735837397550,0.001,97228.0,97227.0,0.10398632]
[1735837397804,0.001,97228.0,97227.0,0.11098632]
[1735837397934,0.205688,97235.0,97227.0,0.10798632]
[1735837398135,0.205688,97235.0,97228.0,0.10398632]
[1735837398951,0.205654,97251.0,97230.0,0.1]
[1735837399179,0.09218133,97280.0,97246.0,0.205662]
[1735837399180,0.079,97266.0,97246.0,0.205662]
[1735837399414,0.09218133,97280.0,97248.0,0.205659]
[1735837399415,0.205632,97261.0,97248.0,0.205659]
[1735837399600,0.20562,97267.0,97253.0,0.205647]
[1735837399797,0.079,97274.0,97254.0,0.10398632]
[1735837400011,0.205596,97278.0,97257.0,0.20564]
[1735837400166,0.20559,97281.0,97260.0,0.22200144]
[1735837400363,0.00014751,97278.0,97266.0,0.205621]
[1735837400612,0.00014751,97278.0,97267.0,0.10398632]
[1735837401236,0.00014751,97278.0,97269.0,0.1]
[1735837401443,0.00014751,97278.0,97270.0,0.10398632]
[1735837402213,0.205607,97273.0,97267.0,0.003]
[1735837402386,0.205611,97271.0,97268.0,0.10398632]
[1735837403023,0.205598,97277.0,97268.0,0.10398632]
[1735837403240,0.205608,97273.0,97268.0,0.10398632]
[1735837403420,0.00014751,97278.0,97268.0,0.20398632]
[1735837403649,0.00014751,97278.0,97269.0,1.5772]
[1735837403848,0.205598,97277.0,97270.0,0.10398632]
[1735837404416,0.00014751,97278.0,97270.0,0.10398632]
[1735837404615,0.205598,97277.0,97270.0,0.10398632]
[1735837405170,0.411201,97276.0,97270.0,0.10398632]
[1735837405372,0.411201,97276.0,97270.0,0.11298632]
[1735837406220,0.00014751,97278.0,97270.0,0.11298632]